bitfinex-derivatives/quotes_ETHF0:USTF0_20250103
["timestamp","ask_amount","ask_price","bid_price","bid_amount"]
[1735877625564,1.28682696,3467.9,3467.8,3.2078]
[1735877626865,1.28682696,3467.9,3467.8,3.49644]
[1735877627264,1.28682696,3467.9,3467.8,3.2078]
[1735877628567,4.68393145,3467.9,3467.8,3.2078]
[1735877630062,1.28682696,3467.9,3467.8,3.2078]
[1735877631662,0.99819696,3467.9,3467.8,3.49644]
[1735877631863,3.39710449,3468.0,3467.8,3.2078]
[1735877632069,3.39710449,3468.0,3467.9,0.28863]
[1735877632566,1.28681696,3468.1,3467.9,0.28863]
[1735877637263,3.68571449,3468.2,3468.0,0.28861]
[1735877637470,4.68391145,3468.2,3468.0,0.28861]
[1735877637668,4.68391145,3468.2,3468.1,0.28861]
[1735877641766,0.28862,3468.0,3467.9,0.28862]
[1735877641967,4.39530145,3468.2,3467.8,3.2078]
[1735877642167,1.28681696,3468.0,3467.9,0.28862]
[1735877645467,1.28681696,3468.0,3467.8,3.49643]
[1735877646471,4.68392145,3468.0,3467.8,3.49643]
[1735877647373,4.39530145,3468.0,3467.8,3.49643]
[1735877647675,4.68393145,3468.0,3467.8,3.49643]
[1735877649574,4.68393145,3468.0,3467.8,4.49462696]
[1735877650468,1.28682696,3468.0,3467.8,4.49462696]
[1735877651077,1.28682696,3468.0,3467.9,0.28863]
[1735877651575,4.68393145,3468.0,3467.9,0.28863]
[1735877652579,1.28682696,3468.0,3467.8,3.49643]
[1735877653078,1.28682696,3468.0,3467.8,3.2078]
[1735877653280,1.28682696,3468.0,3467.9,0.28863]
[1735877655380,4.82495958,3468.1,3467.9,0.28863]
[1735877655579,0.28862,3468.0,3467.9,0.28863]
[1735877656575,4.82495958,3468.0,3467.9,0.28863]
[1735877657682,4.53633958,3468.0,3467.9,0.28863]
[1735877659082,3.40101757,3468.0,3467.8,4.20599696]
[1735877659381,3.40101757,3468.0,3467.9,0.28863]
[1735877661586,4.53633958,3468.1,3468.0,0.28862]
[1735877663892,5.67194375,3468.2,3468.1,0.28861]
[1735877664985,6.95874071,3468.3,3468.1,0.28861]
[1735877665286,6.95874071,3468.3,3467.8,4.20599696]
[1735877665485,6.95874071,3468.3,3468.2,0.2886]
[1735877667688,1.28679696,3468.3,3468.2,0.2886]
[1735877669188,0.99819696,3468.3,3468.2,0.2886]
[1735877669588,1.28678696,3468.3,3468.2,0.2886]
[1735877672789,0.28861,3468.2,3468.1,0.28861]
[1735877674588,0.28861,3468.2,3467.9,3.2078]
[1735877674896,0.28861,3468.2,3468.1,0.28858]
[1735877675897,0.28861,3468.2,3468.0,0.28859]
[1735877676496,0.28861,3468.2,3467.9,0.2886]
[1735877676796,1.28676696,3468.3,3468.2,0.28857]
[1735877677096,0.28858,3468.2,3468.1,0.28858]
[1735877677798,1.28676696,3468.3,3468.2,0.28857]
[1735877678094,0.28858,3468.2,3468.1,0.28858]
[1735877679095,1.28676696,3468.3,3468.2,0.28857]
[1735877679397,0.28858,3468.2,3468.1,0.28858]
[1735877681700,0.28859,3468.1,3468.0,0.28859]
[1735877683401,5.96791829,3468.1,3468.0,0.28859]
[1735877683800,5.67932829,3468.1,3468.0,0.28859]
[1735877684607,0.28858,3468.2,3468.1,0.28858]
[1735877686200,1.28676696,3468.3,3468.2,0.28857]
[1735877686400,0.99819696,3468.3,3467.8,4.20599696]
[1735877686603,0.28858,3468.2,3468.1,0.28858]
[1735877687105,1.28676696,3468.3,3467.8,4.20599696]
[1735877687305,1.28676696,3468.3,3468.2,0.28857]
[1735877687706,0.28858,3468.2,3468.1,0.28858]
[1735877688306,1.28676696,3468.3,3468.2,0.28857]
[1735877688509,0.28858,3468.2,3468.1,0.28858]
[1735877689203,0.28858,3468.2,3467.9,0.2886]
[1735877689402,0.28858,3468.2,3468.1,0.28858]
[1735877689801,1.28676696,3468.3,3468.2,0.28857]
[1735877690004,0.28858,3468.2,3468.1,0.28858]
[1735877690605,0.99819696,3468.3,3467.8,4.20599696]
[1735877690804,0.99819696,3468.3,3468.1,0.28858]
[1735877690805,0.28858,3468.2,3468.1,0.28858]
[1735877691198,1.28676696,3468.3,3468.2,0.28857]
[1735877691410,0.28858,3468.2,3468.1,0.28858]
[1735877694204,0.28857,3468.2,3468.1,0.28858]
[1735877695108,0.99819696,3468.3,3467.8,4.20599696]
[1735877695308,1.28676696,3468.3,3468.2,0.28857]
[1735877695704,0.28858,3468.2,3468.1,0.28858]
[1735877696310,1.28676696,3468.3,3468.2,0.28857]
[1735877699208,0.28857,3468.3,3468.2,0.28857]
[1735877702518,0.28856,3468.4,3468.3,0.28856]
[1735877702713,7.8141901,3468.5,3467.8,8.69961827]
[1735877703018,0.28857,3468.3,3468.2,0.28857]
[1735877703409,7.8141901,3468.5,3467.9,4.49362131]
[1735877703615,0.28858,3468.2,3468.1,0.28858]
[1735877705116,0.28859,3468.1,3468.0,0.28859]
[1735877705315,0.99819696,3468.1,3467.8,7.70142131]
[1735877705618,1.28679696,3467.9,3467.8,7.70142131]
[1735877705916,0.2886,3467.9,3467.8,3.2078]
[1735877706113,0.28861,3467.8,3467.7,4.49362131]
[1735877706314,1.28680696,3467.8,3467.7,4.49362131]
[1735877707313,0.28862,3467.6,3467.5,0.28863]
[1735877708221,0.30580044,3467.6,3467.5,0.28863]
[1735877708719,5.69608869,3467.6,3467.5,0.28863]
[1735877709719,0.01718044,3467.6,3467.5,3.49643]
[1735877709915,0.01718044,3467.6,3467.5,4.49462696]
[1735877711437,3.84232638,3467.7,3467.6,0.28862]
[1735877711620,3.84232638,3467.7,3467.6,1.40162]
[1735877711930,3.84232638,3467.7,3467.6,2.39981696]
[1735877712333,3.40548103,3467.8,3467.7,0.28862]
[1735877713027,3.40548103,3467.8,3467.7,3.49642]
[1735877714830,2.12468103,3467.8,3467.7,8.49642]
[1735877715031,2.12468103,3467.8,3467.7,9.49461696]
[1735877715433,2.12468103,3467.8,3467.7,8.49642]
[1735877716332,0.99819696,3468.8,3467.7,25.21541704]
[1735877716537,0.99819696,3468.8,3468.7,3.2078]
[1735877716731,0.99819696,3468.8,3468.7,3.49633]
[1735877717138,0.99819696,3468.8,3468.7,3.2078]
[1735877717535,1.28671696,3468.8,3468.7,3.2078]
[1735877718036,0.99819696,3468.8,3468.7,3.49633]
[1735877718839,0.99819696,3468.8,3468.7,3.2078]
[1735877719138,1.28671696,3468.8,3468.7,3.2078]
[1735877719939,0.99819696,3468.8,3468.7,3.49633]
[1735877724345,0.99819696,3468.8,3468.7,0.28853]
[1735877725044,1.28671696,3468.8,3468.6,3.49634]
[1735877726141,0.28853,3468.7,3468.6,3.2078]
[1735877726547,0.28853,3468.7,3468.6,2.509]
[1735877727644,0.28857,3468.3,3468.2,3.2078]
[1735877728451,0.99819696,3468.4,3467.8,7.72491791]
[1735877728748,0.72132,3468.8,3467.8,4.80571791]
[1735877728749,1.28679696,3467.9,3467.8,4.80571791]
[1735877728950,1.28679696,3467.9,3467.8,0.2886]
[1735877729746,0.99819696,3467.9,3467.8,0.2886]
[1735877730241,0.28859,3468.0,3467.4,7.72491791]
[1735877730242,1.28677696,3468.1,3468.0,0.28858]
[1735877730446,1.28677696,3468.1,3467.7,0.99819696]
[1735877730649,0.28859,3468.0,3467.9,0.28859]
[1735877731650,0.28859,3468.0,3467.8,3.4964]
[1735877732851,0.2886,3467.9,3467.8,3.2078]
[1735877733040,1.28679696,3467.9,3467.8,3.2078]
[1735877734750,0.99819696,3467.9,3467.4,3.2078]
[1735877734949,1.28681696,3467.7,3467.6,0.28862]
[1735877735351,1.28681696,3467.7,3467.5,0.28863]
[1735877735752,1.28681696,3467.7,3467.4,3.2078]
[1735877735952,1.28681696,3467.7,3467.6,0.28862]
[1735877736250,0.28861,3467.8,3467.6,0.28862]
[1735877737752,0.28861,3467.8,3467.4,4.20599696]
[1735877738551,0.28861,3467.8,3467.6,0.28862]
[1735877739553,0.99819696,3467.9,3467.6,0.28862]
[1735877739753,0.28862,3467.7,3467.6,0.28862]
[1735877740755,0.28861,3467.8,3467.6,0.28862]
[1735877742354,0.28861,3467.8,3467.4,4.20599696]
[1735877742651,0.28861,3467.8,3467.7,0.28862]
[1735877748447,0.99819696,3467.9,3467.7,0.28862]
[1735877748760,1.28679696,3467.9,3467.7,0.28862]
[1735877748959,0.28861,3467.8,3467.7,0.28862]
[1735877749755,0.99819696,3467.9,3467.4,4.20599696]
[1735877749955,0.99819696,3467.6,3467.5,0.28863]
[1735877750458,1.28681696,3467.6,3467.5,0.28863]
[1735877750657,1.28681696,3467.6,3467.4,3.2078]
[1735877750853,1.28681696,3467.6,3467.5,0.28863]
[1735877751659,0.99819696,3467.6,3467.5,0.28863]
[1735877751861,1.28681696,3467.6,3467.5,0.28863]
[1735877752165,0.99819696,3467.6,3467.5,0.28863]
[1735877752461,0.28863,3467.5,3467.4,3.2078]
[1735877754064,0.28864,3467.4,3467.3,0.28865]
[1735877754262,1.28683696,3467.4,3467.3,0.28865]
[1735877756162,0.99819696,3467.4,3467.3,0.28865]
[1735877757664,1.28683696,3467.4,3467.3,0.28865]
[1735877758955,0.99819696,3467.4,3467.2,3.2078]
[1735877759161,0.28868,3467.0,3466.8,3.49648]
[1735877759360,0.99819696,3467.0,3466.8,3.2078]
[1735877759562,1.28687696,3467.0,3466.9,0.28868]
[1735877760167,1.28687696,3467.0,3466.8,3.49649]
[1735877760460,0.99819696,3467.0,3466.8,3.49649]
[1735877760662,0.28868,3466.9,3466.8,3.49649]
[1735877761867,0.28868,3466.9,3466.8,3.2078]
[1735877762069,0.28868,3466.9,3466.8,3.49649]
[1735877762568,1.28687696,3467.0,3466.8,3.49649]
[1735877763767,1.28687696,3467.0,3466.9,0.00181492]
[1735877766373,0.99819696,3467.0,3466.9,0.29049492]
[1735877766970,0.28867,3467.1,3466.9,0.29049492]
[1735877767371,4.5316697,3467.3,3467.1,0.28866]
[1735877767574,4.5316697,3467.3,3467.2,4.49465696]
[1735877769679,0.99819696,3467.6,3467.2,3.2078]
[1735877769979,1.28682696,3467.6,3467.4,0.28863]
[1735877770678,1.28681696,3467.7,3467.5,0.28863]
[1735877770975,1.28681696,3467.7,3467.6,3.2078]
[1735877774083,0.99819696,3467.7,3467.6,3.49642]
[1735877775880,4.39896357,3467.7,3467.6,3.49642]
[1735877777480,3.40076661,3467.7,3467.6,3.49642]
[1735877777885,3.40076661,3467.8,3467.7,0.28862]
[1735877778281,3.68937661,3467.8,3467.6,3.49642]
[1735877778581,3.40076661,3467.8,3467.6,3.2078]
[1735877778787,3.40076661,3467.8,3467.7,0.28862]
[1735877778984,4.5316697,3467.9,3467.6,3.2078]
[1735877779184,4.5316697,3467.9,3467.8,0.28861]
[1735877780087,4.5316697,3467.9,3467.6,3.2078]
[1735877780283,0.2886,3467.9,3467.7,0.28861]
[1735877780586,0.99819696,3467.8,3467.7,0.28861]
[1735877782087,0.28862,3467.7,3467.6,3.2078]
[1735877783199,4.8202897,3467.7,3467.6,3.2078]
[1735877784689,0.28867,3467.1,3467.0,3.2078]
[1735877785190,1.28686696,3467.1,3467.0,3.2078]
[1735877786399,0.28867,3467.1,3467.0,3.2078]
[1735877786895,4.82410128,3467.1,3467.0,3.2078]
[1735877788700,4.53543128,3467.1,3466.9,0.00181492]
[1735877788900,0.28867,3467.0,3466.9,0.00181492]
[1735877790502,0.28867,3467.0,3466.9,0.29049492]
[1735877790902,0.28867,3467.0,3466.9,0.00181492]
[1735877793107,3.68931377,3467.0,3466.9,0.00181492]
[1735877794308,0.28867,3467.0,3466.9,0.00181492]
[1735877803106,5.96757825,3467.0,3466.9,0.00181492]
[1735877806317,7.96750397,3467.0,3466.9,0.00181492]
[1735877807812,0.28872,3466.5,3466.4,3.2078]
[1735877808014,1.28868286,3466.5,3466.4,3.2078]
[1735877809213,1.28868286,3466.5,3466.1,3.2078]
[1735877809214,1.72177286,3466.5,3466.1,3.2078]
[1735877809421,1.28870286,3466.2,3466.1,3.2078]
[1735877810223,0.28877,3465.8,3465.7,3.2078]
[1735877815624,0.28877,3465.8,3465.2,3.2078]
[1735877815625,0.28882,3465.3,3465.2,3.2078]
[1735877816220,2.27580511,3465.4,3465.0,0.28884]
[1735877816430,0.28883,3465.2,3465.0,0.28884]
[1735877818418,2.27580511,3465.4,3465.0,0.28884]
[1735877818823,0.28883,3465.2,3465.0,0.28884]
[1735877819224,2.27580511,3465.4,3464.8,3.2078]
[1735877819525,0.28883,3465.2,3465.0,0.28884]
[1735877819729,0.28883,3465.1,3465.0,0.28884]
[1735877820032,0.28882,3465.3,3464.9,0.28884]
[1735877820328,2.27580511,3465.4,3465.0,0.28884]
[1735877820329,0.28883,3465.2,3465.0,0.28884]
[1735877821130,0.28884,3465.1,3464.9,0.28884]
[1735877821629,0.28884,3465.1,3464.8,3.2078]
[1735877821630,0.28883,3465.2,3465.0,0.28884]
[1735877822134,0.28883,3465.1,3465.0,0.28884]
[1735877822429,0.28883,3465.1,3464.9,0.28884]
[1735877822930,0.28883,3465.1,3465.0,0.28884]
[1735877823330,2.27580511,3465.4,3465.0,0.28884]
[1735877823520,0.28883,3465.2,3465.0,0.28884]
[1735877824034,2.27580511,3465.4,3464.8,3.2078]
[1735877824235,0.28885,3464.9,3464.8,3.2078]
[1735877824737,2.27580511,3465.1,3464.4,3.2078]
[1735877825030,3.2078,3465.2,3464.4,3.49668]
[1735877825031,2.27580511,3464.5,3464.4,3.49668]
[1735877825221,2.27580511,3464.5,3464.4,3.2078]
[1735877825425,2.27580511,3464.5,3464.4,3.49669]
[1735877826038,0.28888,3464.6,3464.5,0.28888]
[1735877826236,0.28888,3464.6,3464.4,3.49669]
[1735877826626,0.28887,3464.7,3464.5,0.28888]
[1735877829839,0.28887,3464.6,3464.5,0.28888]
[1735877830038,2.27580511,3464.8,3464.3,3.2078]
[1735877830341,0.28887,3464.7,3464.6,0.28887]
[1735877830642,0.28887,3464.7,3464.3,3.2078]
[1735877830941,0.28887,3464.7,3464.5,0.28888]
[1735877833529,2.27580511,3464.8,3464.5,0.28888]
[1735877833929,0.28887,3464.7,3464.5,0.28888]
[1735877834441,0.28887,3464.7,3464.6,0.28887]
[1735877834840,0.28887,3464.7,3464.5,0.28888]
[1735877835431,0.28887,3464.7,3464.3,3.2078]
[1735877835635,0.28887,3464.7,3464.5,0.28888]
[1735877836235,0.28887,3464.7,3464.6,0.28887]
[1735877836536,1.28992418,3464.7,3464.6,0.28887]
[1735877836739,1.28992418,3464.7,3464.3,3.2078]
[1735877836934,0.28887,3464.7,3464.5,0.28888]
[1735877837836,1.00105418,3465.0,3464.3,3.2078]
[1735877838141,0.28886,3464.8,3464.6,0.28887]
[1735877838341,1.00105418,3465.0,3464.6,0.28887]
[1735877838539,0.28887,3464.7,3464.6,0.28887]
[1735877839340,0.28888,3464.6,3464.5,0.28888]
[1735877839532,1.28993418,3464.6,3464.5,0.28888]
[1735877839939,1.00105418,3464.6,3464.5,0.28888]
[1735877840238,1.28992418,3464.6,3464.5,0.28888]
[1735877840838,1.28993418,3464.6,3464.4,0.28889]
[1735877841144,1.00105418,3464.5,3464.4,0.28889]
[1735877841344,1.28993418,3464.5,3464.4,0.28889]
[1735877841545,1.00105418,3464.5,3464.1,3.2078]
[1735877841846,0.2889,3464.4,3464.2,0.2889]
[1735877842046,1.00105418,3464.3,3464.2,0.2889]
[1735877842444,0.28891,3464.2,3464.1,3.49671]
[1735877842745,0.28891,3464.2,3464.1,3.2078]
[1735877842940,0.28891,3464.2,3464.1,3.49672]
[1735877843139,0.28891,3464.2,3464.1,3.49671]
[1735877843346,1.28995418,3464.3,3464.2,0.28891]
[1735877846058,1.00105418,3464.3,3464.2,0.28891]
[1735877846446,0.28887,3464.7,3464.6,0.28887]
[1735877846654,1.28992418,3464.7,3464.6,0.28887]
[1735877846857,0.28887,3464.6,3464.5,0.28888]
[1735877847055,1.28992418,3464.6,3464.5,0.28888]
[1735877847748,0.28889,3464.5,3464.1,4.20885418]
[1735877847954,1.00105418,3464.4,3464.1,3.2078]
[1735877848155,1.00105418,3464.2,3464.1,3.2078]
[1735877848355,0.28892,3464.1,3464.0,0.28892]
[1735877848559,0.28892,3464.1,3463.8,0.28894]
[1735877848761,1.28998418,3464.0,3463.8,0.28894]
[1735877848963,1.28998418,3464.0,3463.9,0.28893]
[1735877851749,1.00105418,3464.0,3463.9,0.28893]
[1735877851954,0.28892,3464.1,3464.0,0.28892]
[1735877853152,1.00105418,3464.2,3464.0,0.28892]
[1735877853352,1.28996418,3464.2,3464.0,0.28892]
[1735877853957,1.28996418,3464.2,3463.7,1.00105418]
[1735877854260,6.60067573,3464.5,3464.3,0.28889]
[1735877854469,0.28889,3464.4,3464.3,0.28889]
[1735877855055,6.60067573,3464.5,3463.9,1.00105418]
[1735877855256,1.28996418,3464.3,3464.2,0.28891]
[1735877855457,1.00105418,3464.3,3464.2,0.28891]
[1735877856456,1.28995418,3464.3,3464.2,0.28891]
[1735877857161,1.00105418,3464.3,3463.9,1.00105418]
[1735877857462,0.28891,3464.2,3464.1,0.28891]
[1735877860565,0.28894,3463.9,3463.8,0.28894]
[1735877862758,0.28893,3464.0,3463.8,0.28894]
[1735877863063,3.39287573,3464.0,3463.8,0.28894]
[1735877863263,0.28893,3463.9,3463.8,0.28894]
[1735877863963,3.68180573,3464.0,3463.9,0.28893]
[1735877864164,3.68180573,3464.0,3463.6,5.32285418]
[1735877864563,3.68180573,3464.0,3463.9,0.28893]
[1735877865262,3.68180573,3464.0,3463.8,0.28894]
[1735877866765,0.28893,3463.9,3463.8,0.28894]
[1735877867569,3.68180573,3463.9,3463.8,0.28894]
[1735877868068,3.68180573,3463.9,3463.8,1.28999418]
[1735877868771,3.39287573,3463.9,3463.8,1.28999418]
[1735877869367,3.39287573,3463.9,3463.8,1.00105418]
[1735877869671,3.68180573,3463.9,3463.8,1.28999418]
[1735877870271,3.39287573,3463.9,3463.8,1.28999418]
[1735877870968,0.28893,3463.9,3463.8,1.28999418]
[1735877871471,4.52383431,3464.0,3463.8,1.28999418]
[1735877871672,4.81276431,3464.0,3463.8,1.28999418]
[1735877872273,4.81276431,3464.0,3463.9,0.28893]
[1735877874175,4.52383431,3464.0,3463.9,3.49673]
[1735877876174,3.40738045,3464.2,3464.1,0.28892]
[1735877876374,3.40738045,3464.2,3464.1,1.28997418]
[1735877880280,3.40738045,3464.2,3464.1,0.28892]
[1735877880987,3.40738045,3464.5,3464.4,0.28889]
[1735877881284,3.40738045,3464.5,3464.4,4.49774418]
[1735877882377,4.52383431,3464.7,3464.4,4.49774418]
[1735877882378,3.40738045,3464.8,3464.7,0.28887]
[1735877884383,3.40738045,3464.9,3464.8,0.28886]
[1735877884583,3.40738045,3464.9,3464.8,1.28991418]
[1735877885574,3.40738045,3465.0,3464.8,1.00105418]
[1735877885777,3.40738045,3465.0,3464.9,0.28885]
[1735877886988,1.00105418,3465.3,3465.0,0.28884]
[1735877886989,3.40738045,3465.1,3465.0,0.28884]
[1735877887986,3.40738045,3465.1,3465.0,1.28989418]
[1735877889281,3.40738045,3465.3,3465.2,0.28882]
[1735877890287,3.40738045,3465.3,3465.2,1.28987418]
[1735877890594,3.40738045,3465.4,3465.3,0.28882]
[1735877891488,3.69619045,3465.4,3465.2,1.28987418]
[1735877891688,0.28881,3465.4,3465.2,1.28987418]
[1735877891888,1.00105418,3465.3,3465.2,0.28882]
[1735877892092,3.40738045,3465.5,3465.3,0.28882]
[1735877892280,0.28881,3465.4,3465.3,0.28882]
[1735877892700,0.28881,3465.4,3465.0,2.11505418]
[1735877892911,0.28882,3465.3,3465.1,0.28883]
[1735877893419,0.28882,3465.3,3465.2,0.28882]
[1735877894685,1.00105418,3465.3,3465.0,2.11505418]
[1735877894879,1.28987418,3465.3,3465.1,0.28883]
[1735877895389,0.28882,3465.3,3465.1,0.28883]
[1735877895888,1.00105418,3465.4,3465.1,0.28883]
[1735877896079,0.28882,3465.2,3465.1,0.28883]
[1735877896986,1.00105418,3465.4,3465.0,2.11505418]
[1735877897189,0.28882,3465.3,3465.2,0.28882]
[1735877897693,1.00105418,3465.4,3465.3,0.28882]
[1735877897887,0.28882,3465.3,3465.2,0.28882]
[1735877898083,3.40738045,3465.5,3465.0,2.11505418]
[1735877898390,0.28881,3465.4,3465.3,0.28882]
[1735877899393,0.28882,3465.3,3465.2,1.28987418]
[1735877899596,7.61623463,3465.6,3465.2,1.00105418]
[1735877899785,0.28881,3465.4,3465.3,0.28881]
[1735877900293,0.28882,3465.3,3465.2,1.28987418]
[1735877900694,0.28881,3465.4,3465.2,1.28987418]
[1735877900897,7.61623463,3465.6,3465.2,1.28987418]
[1735877901097,0.28882,3465.3,3465.2,1.28987418]
[1735877901292,0.28882,3465.3,3465.2,1.00105418]
[1735877901488,0.28882,3465.3,3465.1,0.28883]
[1735877901794,0.28882,3465.2,3465.1,0.28883]
[1735877902995,0.28882,3465.3,3465.2,0.28882]
[1735877903596,0.28882,3465.2,3465.1,0.28883]
[1735877903985,0.28882,3465.3,3465.1,0.28883]
[1735877906697,0.28882,3465.3,3465.2,0.28882]
[1735877911701,1.28986418,3465.4,3465.2,0.28882]
[1735877912005,0.28881,3465.4,3465.3,0.28882]
[1735877912405,0.28882,3465.3,3465.2,0.28882]
[1735877916005,0.28881,3465.4,3465.2,0.28882]
[1735877916403,0.28881,3465.4,3465.3,0.28882]
[1735877918410,3.69619045,3465.4,3465.3,0.28882]
[1735877919809,0.28881,3465.4,3465.3,0.28882]
[1735877920312,0.28883,3465.2,3465.1,0.28883]
[1735877921014,3.69304853,3465.2,3465.1,0.28883]
[1735877922412,0.28883,3465.2,3465.1,0.28883]
[1735877922804,4.81265431,3465.3,3465.1,0.28883]
[1735877924807,4.81265431,3465.3,3465.2,0.28882]
[1735877925017,0.28882,3465.3,3465.2,0.28882]
[1735877925414,0.28882,3465.3,3465.0,1.114]
[1735877925614,0.28885,3465.0,3464.8,4.8266905]
[1735877925812,1.28990418,3464.9,3464.8,4.5378405]
[1735877926311,0.28886,3464.8,3464.7,6.78646417]
[1735877927508,0.28887,3464.7,3464.5,0.28888]
[1735877928219,5.65479289,3464.8,3464.6,1.00105418]
[1735877928424,5.65479289,3464.8,3464.7,0.28887]
[1735877929312,5.94365289,3464.8,3464.6,0.28887]
[1735877929522,5.94365289,3464.8,3464.7,4.54435828]
[1735877929523,9.3518041,3464.8,3464.7,4.54435828]
[1735877929720,3.69701121,3464.8,3464.7,4.54435828]
[1735877930118,3.40815121,3464.8,3464.7,4.83322828]
[1735877930315,6.94469707,3464.9,3464.7,0.28887]
[1735877930511,5.94364289,3464.9,3464.7,1.28992418]
[1735877931224,4.54421206,3464.8,3464.7,1.28992418]
[1735877933522,4.54421206,3464.9,3464.7,1.00105418]
[1735877933716,4.54421206,3464.9,3464.8,0.28886]
[1735877939321,4.83306206,3464.9,3464.7,0.28886]
[1735877939927,0.28885,3464.9,3464.7,0.28886]
[1735877940232,5.65479289,3465.0,3464.5,2.11405418]
[1735877940431,5.65479289,3465.0,3464.9,0.28885]
[1735877941024,5.65479289,3465.0,3464.9,1.28990418]
[1735877941225,5.65479289,3465.0,3464.9,4.49770418]
[1735877941522,3.76879289,3465.0,3464.9,4.49770418]
[1735877941930,3.40657951,3465.2,3464.9,8.75321246]
[1735877942127,3.40657951,3465.2,3465.1,1.00105418]
[1735877942528,3.40657951,3465.2,3465.1,1.28988418]
[1735877943231,3.40657951,3465.4,3465.1,5.54541246]
[1735877943428,3.40657951,3465.4,3465.3,0.28882]
[1735877943626,3.40657951,3465.4,3465.1,4.54435828]
[1735877943832,1.00105418,3465.3,3465.1,4.54435828]
[1735877944024,3.69538951,3465.4,3465.2,0.28882]
[1735877944533,4.54210601,3465.3,3465.2,0.28882]
[1735877945234,4.83092601,3465.3,3465.0,1.00105418]
[1735877945529,5.83198019,3465.3,3465.1,0.28883]
[1735877945933,5.54316019,3465.3,3465.2,0.28882]
[1735877947234,4.54210601,3465.3,3465.2,0.28882]
[1735877947929,4.54210601,3465.3,3465.2,1.28987418]
[1735877949225,4.54210601,3465.4,3465.2,1.00105418]
[1735877949433,4.54210601,3465.4,3465.3,0.28882]
[1735877953735,4.54210601,3465.5,3465.4,0.28881]
[1735877957431,5.54316019,3465.5,3465.2,1.00105418]
[1735877957644,0.28881,3465.4,3465.2,0.28882]
[1735877958239,1.28985418,3465.5,3465.3,0.28881]
[1735877958440,1.00105418,3465.5,3465.4,0.28881]
[1735877959342,4.54210601,3465.6,3465.2,1.00105418]
[1735877959552,4.54210601,3465.6,3465.5,0.2888]
[1735877960848,4.83089601,3465.6,3465.4,0.2888]
[1735877961050,1.00105418,3465.5,3465.4,0.2888]
[1735877962051,5.54316019,3465.5,3465.4,0.2888]
[1735877963354,1.00105418,3465.5,3465.4,0.2888]
[1735877963554,1.28985418,3465.5,3465.4,0.2888]
[1735877963749,1.28985418,3465.5,3465.0,5.54541246]
[1735877963750,1.28986418,3465.5,3465.3,0.28881]
[1735877964051,0.28881,3465.4,3465.3,0.28881]
[1735877964854,4.83091601,3465.4,3465.3,0.28881]
[1735877965253,4.54210601,3465.4,3465.3,0.28881]
[1735877967345,5.54316019,3465.5,3465.4,0.28881]
[1735877967550,5.54316019,3465.5,3464.9,4.54435828]
[1735877967856,4.49767418,3465.3,3465.0,0.28884]
[1735877968055,3.2078,3465.3,3465.2,0.28882]
[1735877968658,3.49662,3465.3,3465.1,0.28882]
[1735877968859,3.49662,3465.3,3464.7,1.00105418]
[1735877968860,7.74990601,3465.3,3465.2,0.28882]
[1735877970455,4.54210601,3465.3,3465.2,0.28882]
[1735877971660,3.40489679,3465.5,3465.4,0.2888]
[1735877972364,4.54210601,3465.6,3465.4,0.2888]
[1735877973152,4.83089601,3465.6,3465.4,0.2888]
[1735877973360,5.83195019,3465.6,3465.4,0.2888]
[1735877975965,4.54210601,3465.5,3465.4,0.2888]
[1735877977468,3.40614117,3465.5,3465.4,0.2888]
[1735877980075,3.40614117,3465.7,3465.4,4.54435828]
[1735877980371,3.40614117,3465.7,3465.6,1.28984418]
[1735877985672,3.40614117,3465.7,3465.6,2.40284418]
[1735877986068,3.40614117,3465.7,3465.6,5.61064418]
[1735877986372,1.28978418,3466.3,3465.7,0.28878]
[1735877986373,3.40614117,3465.8,3465.7,0.28878]
[1735877987777,3.40614117,3465.9,3465.8,0.28877]
[1735877987968,3.40614117,3465.9,3465.8,1.28982418]
[1735877989179,3.40614117,3466.1,3466.0,0.28876]
[1735877989476,3.40614117,3466.1,3466.0,1.28981418]
[1735877990176,3.40614117,3466.2,3466.0,1.00105418]
[1735877990479,3.40614117,3466.2,3466.1,0.28875]
[1735877991368,3.40614117,3466.3,3466.2,0.28874]
[1735877991572,3.40614117,3466.3,3466.2,4.49759418]
[1735877992468,3.40614117,3466.4,3466.2,4.20885418]
[1735877992668,3.40614117,3466.4,3466.3,0.28873]
[1735877993577,3.40614117,3466.5,3466.2,4.20885418]
[1735877993876,3.40614117,3466.5,3466.4,1.28977418]
[1735877994867,3.40614117,3466.8,3466.7,0.2887]
[1735877995979,4.69587535,3466.9,3466.7,0.2887]
[1735877997483,0.28869,3466.8,3466.4,0.28872]
[1735877997783,0.2887,3466.7,3466.4,1.28977418]
[1735877998082,0.2887,3466.7,3466.5,0.28871]
[1735877998478,3.69483117,3466.8,3466.6,0.2887]
[1735877998672,0.2887,3466.7,3466.5,0.28871]
[1735877998869,3.40614117,3466.8,3466.4,1.00105418]
[1735877999172,3.69483117,3466.8,3466.6,0.2887]
[1735877999368,3.69483117,3466.8,3466.5,0.28871]
[1735877999781,0.28869,3466.8,3466.5,0.28871]
[1735878000881,0.28869,3466.8,3466.5,0.28872]
[1735878002181,0.28869,3466.8,3466.4,1.00105418]
[1735878002382,1.00105418,3466.7,3466.3,1.113]
[1735878002679,0.28873,3466.4,3466.2,0.28874]
[1735878002879,1.00105418,3466.3,3465.9,1.00105418]
[1735878003182,1.00105418,3466.3,3465.8,5.83418246]
[1735878003380,1.00105418,3466.3,3465.8,1.28982418]
[1735878004173,0.28875,3466.1,3465.8,1.00105418]
[1735878004370,0.28875,3466.1,3465.7,3.2078]
[1735878004574,1.00105418,3466.1,3465.8,0.28877]
[1735878004772,1.00105418,3466.1,3465.7,4.49763418]
[1735878004983,0.28876,3466.0,3465.7,4.49763418]
[1735878005576,0.28876,3466.0,3465.7,4.20885418]
[1735878005878,0.28875,3466.1,3465.7,4.20885418]
[1735878006083,3.40614117,3466.2,3465.9,1.00105418]
[1735878006283,0.28875,3466.1,3465.9,1.28981418]
[1735878006579,3.40614117,3466.2,3466.1,0.28875]
[1735878006776,3.40614117,3466.2,3466.1,1.28980418]
[1735878007584,3.40614117,3466.3,3466.2,0.28874]
[1735878007986,3.69487117,3466.3,3466.1,1.28979418]